{"text_format":"1","workbook":"xlsx","n_sheets":8,"sheets":["Ausdehnung","Erklärung-Schichtdicke","TDS","Kunststofftabelle","Zusätzliche neue Materialien","Material Ausdehnungen","DP Übersicht","Mengenberechnung"],"not_rendered":{"charts":0,"images":0,"macros":1,"external_links":0,"defined_names":4,"comments":0,"pivot_tables":0},"unopened":[],"bounds":{"document_bytes":16777216,"sheet_cells":100000,"rows_first":2000,"rows_last":500,"rows_between":2000,"halvings":0,"cell_chars":16384,"cell_head_chars":4096},"cells_cut":0,"cells_raw":0,"read":"whole","date_system":"1900"}

{"sheet":"Ausdehnung","index":0,"n_rows":100,"n_cols":17,"rows_kept":100,"cut":false,"hidden":false,"merged":[[19,1,19,7],[0,1,0,7],[15,5,15,7],[14,1,14,3],[14,5,14,7],[2,1,2,7]]}
[null,"Designed by 3M (Schweiz) GmbH , Peter Rütimann",null,null,null,null,null,null,null,null,null,null,null,"Materialien","Wärmeausd.","IF Material 1","IF Material 2"]
[null,null,null,null,null,null,null,null,null,null,null,null,null,"PTFE",100,{"$f":"IF(B10=\"PTFE\",O2,0)","v":0},{"$f":"IF(B13=\"PTFE\",O2,0)","v":0}]
[null,"Berechnungen von linearen Materialausdehnungen",null,null,null,null,null,null,null,null,null,null,null,"PTFCE",60,{"$f":"IF(B10=\"PTFCE\",O3,0)","v":0},{"$f":"IF(B13=\"PTFCE\",O3,0)","v":0}]
[null,null,null,null,null,null,null,null,null,null,null,null,null,"PP",150,{"$f":"IF(B10=\"PP\",O4,0)","v":0},{"$f":"IF(B13=\"PP\",O4,0)","v":0}]
[null,"Eingabefelder",null,"Dehnungs-",null,"Eingabe des",null,"Eingabe der",null,null,null,null,null,"PE",250,{"$f":"IF(B10=\"PE\",O5,0)","v":0},{"$f":"IF(B13=\"PE\",O5,0)","v":0}]
[null,"Resultatfelder",null,"faktor",null,"Temperaturunter-",null,"längsten linearen",null,null,null,null,null,"PMMA",85,{"$f":"IF(B10=\"PMMA\",O6,0)","v":0},{"$f":"IF(B13=\"PMMA\",O6,0)","v":0}]
[null,null,null,"gegebener Wert",null,"schiedes ab",null,"Baulänge",null,null,null,null,null,"Corean",39,{"$f":"IF(B10=\"Corean\",O7,0)","v":0},{"$f":"IF(B13=\"Corean\",O7,0)","v":0}]
[null,null,null,null,null,"Verarbeitungstemperatur",null,null,null,null,null,null,null,"Forex 1-4mm",56,{"$f":"IF(B10=\"Forex 1-4mm\",O8,0)","v":0},{"$f":"IF(B13=\"Forex 1-4mm\",O8,0)","v":0}]
[null,"Material 1 wählen",null,null,null,"in °Celsius",null,"in Millimeter",null,null,null,null,null,"Forex 5-19mm",66,{"$f":"IF(B10=\"Forex 5-19mm\",O9,0)","v":0},{"$f":"IF(B13=\"Forex 5-19mm\",O9,0)","v":0}]
[null,"NICKEL",null,{"$f":"$P$95","v":13.4},9.9999999999999995E-7,null,null,2000,null,null,null,null,null,"PVC U hart",100,{"$f":"IF(B10=\"PVC U hart\",O10,0)","v":0},{"$f":"IF(B13=\"PVC U hart\",O10,0)","v":0}]
[null,null,null,null,null,null,null,null,null,null,null,null,null,"PVC P weich",200,{"$f":"IF(B10=\"PVC P weich\",O11,0)","v":0},{"$f":"IF(B13=\"PVC P weich\",O11,0)","v":0}]
[null,"Material 2 wählen",null,null,null,null,null,null,null,null,null,null,null,"EVA",200,{"$f":"IF(B10=\"EVA\",O12,0)","v":0},{"$f":"IF(B13=\"EVA\",O12,0)","v":0}]
[null,"CHROMNICKELSTAHL",null,{"$f":"$Q$95","v":17},null,null,null,null,null,null,null,null,null,"SI",50,{"$f":"IF(B10=\"SI\",O13,0)","v":0},{"$f":"IF(B13=\"SI\",O13,0)","v":0}]
[null,null,null,null,null,null,null,null,null,null,null,null,null,"EPOXY",35,{"$f":"IF(B10=\"EPOXY\",O14,0)","v":0},{"$f":"IF(B13=\"EPOXY\",O14,0)","v":0}]
[null,"Ausdehnungen der Materialien in mm von",null,null,null,"Ausdehnungs-Differenz in mm",null,null,null,null,null,null,null,"CA",120,{"$f":"IF(B10=\"CA\",O15,0)","v":0},{"$f":"IF(B13=\"CA\",O15,0)","v":0}]
[null,{"$f":"+B10","v":"NICKEL"},"=",{"$f":"$O$98","v":0},null,{"$f":"$P$100","v":0},null,null,null,null,null,null,null,"PA6,PA6,6",80,{"$f":"IF(B10=\"PA6,PA6,6\",O16,0)","v":0},{"$f":"IF(B13=\"PA6,PA6,6\",O16,0)","v":0}]
[null,null,null,null,null,null,null,null,null,null,null,null,null,"PI,Kapton",60,{"$f":"IF(B10=\"PI,KAPTON\",O17,0)","v":0},{"$f":"IF(B13=\"PI,KAPTON\",O17,0)","v":0}]
[null,{"$f":"+B13","v":"CHROMNICKELSTAHL"},"=",{"$f":"$O$99","v":0},null,null,null,null,null,null,null,null,null,"ABS",110,{"$f":"IF(B10=\"ABS\",O18,0)","v":0},{"$f":"IF(B13=\"ABS\",O18,0)","v":0}]
[null,"*Alle Dap.= Daplen + Luran S 778T von -30°C bis +80°C",null,null,null,null,null,null,null,null,null,null,null,"ABS Verchromt",30,{"$f":"IF(B10=\"ABS Verchromt\",O19,0)","v":0},{"$f":"IF(B13=\"ABS Verchromt\",O19,0)","v":0}]
[null,"Created December 2000, last update Aug. 2015, Version 2.2   © 3M 2015",null,null,null,null,null,null,null,null,null,null,null,"ABS/PC Verchromt",30,{"$f":"IF(B10=\"ABS/PC Verchromt\",O20,0)","v":0},{"$f":"IF(B13=\"ABS/PC Verchromt\",O20,0)","v":0}]
[null,null,null,null,null,null,null,null,null,null,null,null,null,"SAN",80,{"$f":"IF(B10=\"SAN\",O21,0)","v":0},{"$f":"IF(B13=\"SAN\",O21,0)","v":0}]
[null,null,null,null,null,null,null,null,null,null,null,null,null,"BASF ASA Luran S 778 T",80,{"$f":"IF(B10=\"BASF ASA Luran S 778 T\",O22,0)","v":0},{"$f":"IF(B13=\"BASF ASA Luran S 778 T\",O22,0)","v":0}]
[null,null,null,null,null,null,null,null,null,null,null,null,null,"POM",110,{"$f":"IF(B10=\"POM\",O23,0)","v":0},{"$f":"IF(B13=\"POM\",O23,0)","v":0}]
[null,null,null,null,null,null,null,null,null,null,null,null,null,"PS",70,{"$f":"IF(B10=\"PS\",O24,0)","v":0},{"$f":"IF(B13=\"PS\",O24,0)","v":0}]
[null,null,null,null,null,null,null,null,null,null,null,null,null,"EPS",70,{"$f":"IF(B10=\"EPS\",O25,0)","v":0},{"$f":"IF(B13=\"EPS\",O25,0)","v":0}]
[null,null,null,null,null,null,null,null,null,null,null,null,null,"EPS-PPO",50,{"$f":"IF(B10=\"EPS-PPO\",O26,0)","v":0},{"$f":"IF(B13=\"EPS-PPO\",O26,0)","v":0}]
[null,null,null,null,null,null,null,null,null,null,null,null,null,"EPP",100,{"$f":"IF(B10=\"EPP\",O27,0)","v":0},{"$f":"IF(B13=\"EPP\",O27,0)","v":0}]
[null,null,null,null,null,null,null,null,null,null,null,null,null,"PC",92,{"$f":"IF(B10=\"PC\",O28,0)","v":0},{"$f":"IF(B13=\"PC\",O28,0)","v":0}]
[null,null,null,null,null,null,null,null,null,null,null,null,null,"PET",70,{"$f":"IF(B10=\"PET\",O29,0)","v":0},{"$f":"IF(B13=\"PET\",O29,0)","v":0}]
[null,null,null,null,null,null,null,null,null,null,null,null,null,"Dap.ED230HPPPEPDMT20",52,{"$f":"IF(B10=\"Dap.ED230HPPPEPDMT20\",O30,0)","v":0},{"$f":"IF(B13=\"Dap.ED230HPPPEPDMT20\",O30,0)","v":0}]
[null,null,null,null,null,null,null,null,null,null,null,null,null,"Dap.EH104AEPPEPDMT10",68,{"$f":"IF(B10=\"Dap.EH104AEPPEPDMT10\",O31,0)","v":0},{"$f":"IF(B13=\"Dap.EH104AEPPEPDMT10\",O31,0)","v":0}]
[null,null,null,null,null,null,null,null,null,null,null,null,null,"Dap.L134HPPPEPDMT15",55,{"$f":"IF(B10=\"Dap.L134HPPPEPDMT15\",O32,0)","v":0},{"$f":"IF(B13=\"Dap.L134HPPPEPDMT15\",O32,0)","v":0}]
[null,null,null,null,null,null,null,null,null,null,null,null,null,"Dap.ED117AEPPEPDMT10",80,{"$f":"IF(B10=\"Dap.ED117AEPPEPDMT10\",O33,0)","v":0},{"$f":"IF(B13=\"Dap.ED117AEPPEPDMT10\",O33,0)","v":0}]
[null,null,null,null,null,null,null,null,null,null,null,null,null,"Dap.L340AE01PPEPDMT30",25,{"$f":"IF(B10=\"Dap.L340AE01PPEPDMT30\",O34,0)","v":0},{"$f":"IF(B13=\"Dap.L340AE01PPEPDMT30\",O34,0)","v":0}]
[null,null,null,null,null,null,null,null,null,null,null,null,null,"Dap.L109AE02PPEPDMT16",40,{"$f":"IF(B10=\"Dap.L109AE02PPEPDMT16\",O35,0)","v":0},{"$f":"IF(B13=\"Dap.L109AE02PPEPDMT16\",O35,0)","v":0}]
[null,null,null,null,null,null,null,null,null,null,null,null,null,"Dap.ED213AEPPEPDMT20",50,{"$f":"IF(B10=\"Dap.ED213AEPPEPDMT20\",O36,0)","v":0},{"$f":"IF(B13=\"Dap.ED213AEPPEPDMT20\",O36,0)","v":0}]
[null,null,null,null,null,null,null,null,null,null,null,null,null,"PUR",210,{"$f":"IF(B10=\"PUR\",O37,0)","v":0},{"$f":"IF(B13=\"PUR\",O37,0)","v":0}]
[null,null,null,null,null,null,null,null,null,null,null,null,null,"ALU",23.1,{"$f":"IF(B10=\"ALU\",O38,0)","v":0},{"$f":"IF(B13=\"ALU\",O38,0)","v":0}]
[null,null,null,null,null,null,null,null,null,null,null,null,null,"Dibond",23,{"$f":"IF(B10=\"Dibond\",O39,0)","v":0},{"$f":"IF(B13=\"Dibond\",O39,0)","v":0}]
[null,null,null,null,null,null,null,null,null,null,null,null,null,"BLEI",29,{"$f":"IF(B10=\"BLEI\",O40,0)","v":0},{"$f":"IF(B13=\"BLEI\",O40,0)","v":0}]
[null,null,null,null,null,null,null,null,null,null,null,null,null,"CHROME",4.9000000000000004,{"$f":"IF(B10=\"CHROME\",O41,0)","v":0},{"$f":"IF(B13=\"CROME\",O41,0)","v":0}]
[null,null,null,null,null,null,null,null,null,null,null,null,null,"STAHL",11.5,{"$f":"IF(B10=\"STAHL\",O42,0)","v":0},{"$f":"IF(B13=\"STAHL\",O42,0)","v":0}]
[null,null,null,null,null,null,null,null,null,null,null,null,null,"CHROMNICKELSTAHL",17,{"$f":"IF(B10=\"CHROMNICKELSTAHL\",O43,0)","v":0},{"$f":"IF(B13=\"CHROMNICKELSTAHL\",O43,0)","v":17}]
[null,null,null,null,null,null,null,null,null,null,null,null,null,"GUSS",12,{"$f":"IF(B10=\"GUSS\",O44,0)","v":0},{"$f":"IF(B13=\"GUSS\",O44,0)","v":0}]
[null,null,null,null,null,null,null,null,null,null,null,null,null,"GOLD",14.2,{"$f":"IF(B10=\"GOLD\",O45,0)","v":0},{"$f":"IF(B13=\"GOLD\",O45,0)","v":0}]
[null,null,null,null,null,null,null,null,null,null,null,null,null,"KUPFER",16.5,{"$f":"IF(B10=\"KUPFER\",O46,0)","v":0},{"$f":"IF(B13=\"KUPFER\",O46,0)","v":0}]
[null,null,null,null,null,null,null,null,null,null,null,null,null,"NICKEL",13.4,{"$f":"IF(B10=\"NICKEL\",O47,0)","v":13.4},{"$f":"IF(B13=\"NICKEL\",O47,0)","v":0}]
[null,null,null,null,null,null,null,null,null,null,null,null,null,"SILBER",18.899999999999999,{"$f":"IF(B10=\"SILBER\",O48,0)","v":0},{"$f":"IF(B13=\"SILBER\",O48,0)","v":0}]
[null,null,null,null,null,null,null,null,null,null,null,null,null,"BERYLLIUM",11.3,{"$f":"IF(B10=\"BERYLLIUM\",O49,0)","v":0},{"$f":"IF(B13=\"BERYLLIUM\",O49,0)","v":0}]
[null,null,null,null,null,null,null,null,null,null,null,null,null,"TITAN",8.6,{"$f":"IF(B10=\"TITAN\",O50,0)","v":0},{"$f":"IF(B13=\"TITAN\",O50,0)","v":0}]
[null,null,null,null,null,null,null,null,null,null,null,null,null,"BRONZE",7,{"$f":"IF(B10=\"BRONZE\",O51,0)","v":0},{"$f":"IF(B13=\"BRONZE\",O51,0)","v":0}]
[null,null,null,null,null,null,null,null,null,null,null,null,null,"MESSING",21,{"$f":"IF(B10=\"MESSING\",O52,0)","v":0},{"$f":"IF(B13=\"MESSING\",O52,0)","v":0}]
[null,null,null,null,null,null,null,null,null,null,null,null,null,"MAGNESIUM",24.8,{"$f":"IF(B10=\"MAGNESIUM\",O53,0)","v":0},{"$f":"IF(B13=\"MAGNESIUM\",O53,0)","v":0}]
[null,null,null,null,null,null,null,null,null,null,null,null,null,"MANGAN",21.7,{"$f":"IF(B10=\"MANGAN\",O54,0)","v":0},{"$f":"IF(B13=\"MANGAN\",O54,0)","v":0}]
[null,null,null,null,null,null,null,null,null,null,null,null,null,"ZINK",30.2,{"$f":"IF(B10=\"ZINK\",O55,0)","v":0},{"$f":"IF(B13=\"ZINK\",O55,0)","v":0}]
[null,null,null,null,null,null,null,null,null,null,null,null,null,"ZINKCYANID",-18.100000000000001,{"$f":"IF(B10=\"ZINKCYANID\",O56,0)","v":0},{"$f":"IF(B13=\"ZINKCYANID\",O56,0)","v":0}]
[null,null,null,null,null,null,null,null,null,null,null,null,null,"WOLFRAM",4.5,{"$f":"IF(B10=\"WOLFRAM\",O57,0)","v":0},{"$f":"IF(B13=\"WOLFRAM\",O57,0)","v":0}]
[null,null,null,null,null,null,null,null,null,null,null,null,null,"PLATIN",8.8000000000000007,{"$f":"IF(B10=\"PLATIN\",O58,0)","v":0},{"$f":"IF(B13=\"PLATIN\",O58,0)","v":0}]
[null,null,null,null,null,null,null,null,null,null,null,null,null,"ZINN",22,{"$f":"IF(B10=\"ZINN\",O59,0)","v":0},{"$f":"IF(B13=\"ZINN\",O59,0)","v":0}]
[null,null,null,null,null,null,null,null,null,null,null,null,null,"BETON",10,{"$f":"IF(B10=\"BETON\",O60,0)","v":0},{"$f":"IF(B13=\"BETON\",O60,0)","v":0}]
[null,null,null,null,null,null,null,null,null,null,null,null,null,"KIESBETON",11,{"$f":"IF(B10=\"KIESBETON\",O61,0)","v":0},{"$f":"IF(B13=\"KIESBETON\",O61,0)","v":0}]
[null,null,null,null,null,null,null,null,null,null,null,null,null,"GASBETON",11,{"$f":"IF(B10=\"GASBETON\",O62,0)","v":0},{"$f":"IF(B13=\"GASBETON\",O62,0)","v":0}]
[null,null,null,null,null,null,null,null,null,null,null,null,null,"TON",7,{"$f":"IF(B10=\"TON\",O63,0)","v":0},{"$f":"IF(B13=\"TON\",O63,0)","v":0}]
[null,null,null,null,null,null,null,null,null,null,null,null,null,"STEIN",7,{"$f":"IF(B10=\"STEIN\",O64,0)","v":0},{"$f":"IF(B13=\"STEIN\",O64,0)","v":0}]
[null,null,null,null,null,null,null,null,null,null,null,null,null,"ZIEGELSTEIN",5,{"$f":"IF(B10=\"ZIEGELSTEIN\",O65,0)","v":0},{"$f":"IF(B13=\"ZIEGELSTEIN\",O65,0)","v":0}]
[null,null,null,null,null,null,null,null,null,null,null,null,null,"KLINKER",7,{"$f":"IF(B10=\"KLINKER\",O66,0)","v":0},{"$f":"IF(B13=\"KLINKER\",O66,0)","v":0}]
[null,null,null,null,null,null,null,null,null,null,null,null,null,"KERAM.FLIESEN",6,{"$f":"IF(B10=\"KERAM.FLIESEN\",O67,0)","v":0},{"$f":"IF(B13=\"KERAM.FLIESEN\",O67,0)","v":0}]
[null,null,null,null,null,null,null,null,null,null,null,null,null,"SANDSTEIN",12,{"$f":"IF(B10=\"SANDSTEIN\",O68,0)","v":0},{"$f":"IF(B13=\"SANDSTEIN\",O68,0)","v":0}]
[null,null,null,null,null,null,null,null,null,null,null,null,null,"KALKSANDSTEIN",8.5,{"$f":"IF(B10=\"KALKSANDSTEIN\",O69,0)","v":0},{"$f":"IF(B13=\"KALKSANDSTEIN\",O69,0)","v":0}]
[null,null,null,null,null,null,null,null,null,null,null,null,null,"PORZELAN",2.2000000000000002,{"$f":"IF(B10=\"PORZELAN\",O70,0)","v":0},{"$f":"IF(B13=\"PORZELAN\",O70,0)","v":0}]
[null,null,null,null,null,null,null,null,null,null,null,null,null,"BASALT",9,{"$f":"IF(B10=\"BASALT\",O71,0)","v":0},{"$f":"IF(B13=\"BASALT\",O71,0)","v":0}]
[null,null,null,null,null,null,null,null,null,null,null,null,null,"GIPS",25,{"$f":"IF(B10=\"GIPS\",O72,0)","v":0},{"$f":"IF(B13=\"GIPS\",O72,0)","v":0}]
[null,null,null,null,null,null,null,null,null,null,null,null,null,"DOLOMIT",8,{"$f":"IF(B10=\"DOLOMIT\",O73,0)","v":0},{"$f":"IF(B13=\"DOLOMIT\",O73,0)","v":0}]
[null,null,null,null,null,null,null,null,null,null,null,null,null,"TRAVERTIN",7,{"$f":"IF(B10=\"TRAVERTIN\",O74,0)","v":0},{"$f":"IF(B13=\"TRAVERTIN\",O74,0)","v":0}]
[null,null,null,null,null,null,null,null,null,null,null,null,null,"GLAS",8,{"$f":"IF(B10=\"GLAS\",O75,0)","v":0},{"$f":"IF(B13=\"GLAS\",O75,0)","v":0}]
[null,null,null,null,null,null,null,null,null,null,null,null,null,"QUARZGLAS",0.5,{"$f":"IF(B10=\"QUARZGLAS\",O76,0)","v":0},{"$f":"IF(B13=\"QUARZGLAS\",O76,0)","v":0}]
[null,null,null,null,null,null,null,null,null,null,null,null,null,"DIAMANT",1.18,{"$f":"IF(B10=\"DIAMANT\",O77,0)","v":0},{"$f":"IF(B13=\"DIAMANT\",O77,0)","v":0}]
[null,null,null,null,null,null,null,null,null,null,null,null,null,"SILIZIUM",2.6,{"$f":"IF(B10=\"SILIZIUM\",O78,0)","v":0},{"$f":"IF(B13=\"SILIZIUM\",O78,0)","v":0}]
[null,null,null,null,null,null,null,null,null,null,null,null,null,"MELAMINHARZ",50,{"$f":"IF(B10=\"MELAMINHARZ\",O79,0)","v":0},{"$f":"IF(B13=\"MELAMINHARZ\",O79,0)","v":0}]
[null,null,null,null,null,null,null,null,null,null,null,null,null,"PHENOLHARZ",40,{"$f":"IF(B10=\"PHENOLHARZ\",O80,0)","v":0},{"$f":"IF(B13=\"PHENOLHARZ\",O80,0)","v":0}]
[null,null,null,null,null,null,null,null,null,null,null,null,null,"MDF",6.8,{"$f":"IF(B10=\"MDF\",O81,0)","v":0},{"$f":"IF(B13=\"MDF\",O81,0)","v":0}]
[null,null,null,null,null,null,null,null,null,null,null,null,null,"AHORN längs FAS.",6.4,{"$f":"IF(B10=\"AHORN längs FAS.\",O82,0)","v":0},{"$f":"IF(B13=\"AHORN längs FAS.\",O82,0)","v":0}]
[null,null,null,null,null,null,null,null,null,null,null,null,null,"AHORN quer FAS.",48.4,{"$f":"IF(B10=\"AHORN quer FAS.\",O83,0)","v":0},{"$f":"IF(B13=\"AHORN quer FAS.\",O83,0)","v":0}]
[null,null,null,null,null,null,null,null,null,null,null,null,null,"BUCHE längs FAS.",6,{"$f":"IF(B10=\"BUCHE längs FAS.\",O84,0)","v":0},{"$f":"IF(B13=\"BUCHE längs FAS.\",O84,0)","v":0}]
[null,null,null,null,null,null,null,null,null,null,null,null,null,"BUCHE quer FAS.",47.6,{"$f":"IF(B10=\"BUCHE quer FAS.\",O85,0)","v":0},{"$f":"IF(B13=\"BUCHE quer FAS.\",O85,0)","v":0}]
[null,null,null,null,null,null,null,null,null,null,null,null,null,"EICHE längs FAS.",3.4,{"$f":"IF(B10=\"EICHE längs FAS.\",O86,0)","v":0},{"$f":"IF(B13=\"EICHE längs FAS.\",O86,0)","v":0}]
[null,null,null,null,null,null,null,null,null,null,null,null,null,"EICHE quer FAS.",28,{"$f":"IF(B10=\"EICHE quer FAS.\",O87,0)","v":0},{"$f":"IF(B13=\"EICHE quer FAS.\",O87,0)","v":0}]
[null,null,null,null,null,null,null,null,null,null,null,null,null,"FICHTE längs FAS.",5.4,{"$f":"IF(B10=\"FICHTE längs FAS.\",O88,0)","v":0},{"$f":"IF(B13=\"FICHTE längs FAS.\",O88,0)","v":0}]
[null,null,null,null,null,null,null,null,null,null,null,null,null,"FICHTE quer FAS.",34.1,{"$f":"IF(B10=\"FICHTE quer FAS.\",O89,0)","v":0},{"$f":"IF(B13=\"FICHTE quer FAS.\",O89,0)","v":0}]
[null,null,null,null,null,null,null,null,null,null,null,null,null,"MAHAG längs FAS.",3.6,{"$f":"IF(B10=\"MAHAG längs FAS.\",O90,0)","v":0},{"$f":"IF(B13=\"MAHAG längs FAS.\",O90,0)","v":0}]
[null,null,null,null,null,null,null,null,null,null,null,null,null,"MAHAG quer FAS.",40.4,{"$f":"IF(B10=\"MAHAG quer FAS.\",O91,0)","v":0},{"$f":"IF(B13=\"MAHAG quer FAS.\",O91,0)","v":0}]
[null,null,null,null,null,null,null,null,null,null,null,null,null,"TANNE längs FAS.",3.7,{"$f":"IF(B10=\"TANNE längs FAS.\",O92,0)","v":0},{"$f":"IF(B13=\"TANNE längs FAS.\",O92,0)","v":0}]
[null,null,null,null,null,null,null,null,null,null,null,null,null,"TANNE quer FAS.",34.1,{"$f":"IF(B10=\"Tanne quer Fas.\",O93,0)","v":0},{"$f":"IF(B13=\"TANNE quer FAS.\",O93,0)","v":0}]
[]
[null,null,null,null,null,null,null,null,null,null,null,null,null,null,"Summ",{"$f":"SUM(P2:P94)","v":13.4},{"$f":"SUM(Q2:Q94)","v":17}]
[]
[]
[null,null,null,null,null,null,null,null,null,null,null,null,null,"Dehnung Mat 1",{"$f":"D10*E10*F10*H10","v":0}]
[null,null,null,null,null,null,null,null,null,null,null,null,null,"Dehnung Mat 2",{"$f":"D13*E10*F10*H10","v":0}]
[null,null,null,null,null,null,null,null,null,null,null,null,null,"Diff.",{"$f":"+O98-O99","v":0},{"$f":"IF(O100<0,O100*-1,O100)","v":0}]

{"sheet":"Erklärung-Schichtdicke","index":1,"n_rows":47,"n_cols":16,"rows_kept":47,"cut":false,"hidden":false,"merged":[]}
["Mit diesem Tool können Sie die Ausdehnungen und Ausdehnungsdifferenzen von verschiedensten Materialien annähernd einfach berechnen."]
["1) Wählen Sie im Fächer Ausdehnung aus der Auswahlliste \" Material 1\" und \" Material 2\" die Materialpaarung."]
["2) Geben Sie die grösstmögliche Temperaturabweichung von der Verklebetemperatur in Grad Celsius ein."]
["Beispiel 1: Sie kleben bei +20°C. Die Verklebung wird später im Einsatzbereich bis max. + 60°C warm. Temperaturunterschied = 40°C."]
["Beispiel 2: Sie kleben bei +25°C. Die Verklebung wird später im Einsatz bis max. -30°C kalt.Temperaturunterschied = 55°C."]
["3) Geben Sie die lineare Länge der verklebten Bauteile unter \"Verklebte Baulänge\" in Millimeter ein."]
["4) Unter Ausdehnungsdifferenz erhalten Sie die totale Differenz der linearen Ausdehnungen der beiden gewählten Materialien."]
["Kann sich die Ausdehnung in beide Richtungen gleichmässig verteilen, können sie die totale Ausdehnungsdifferenz auf beiden Seiten halbieren. "]
[]
[null,null,null,"Material dehnt sich gleichmässig auf alle Seiten von der Mitte her nach aussen aus."]
[]
["Beispiel A:",null,null,null,null,null,null,null,null,"Material 1"]
[null,null,null,null,null,null,null,null,null,null,"∆T",{"$f":"Ausdehnung!$F$10","v":0}]
[null,null,null,null,null,null,null,null,null,null,"Länge mm",{"$f":"Ausdehnung!H10","v":2000}]
[null,null,null,null,null,null,null,null,null,null,"Totale Ausdehnungsdifferenz",null,{"$f":"$A$30","v":"0"}]
[null,null,null,null,null,null,null,null,null,null,"Klebstoff"]
[null,null,null,null,null,null,null,null,null,null,"Material 2"]
[]
[]
[]
[]
[null,null,{"$f":"B30","v":0},"½  Ausdehnungsdifferenz",null,null,null,null,null,{"$f":"B30","v":0},null,"½ Ausdehnungsdifferenz"]
[]
[]
[null,null,"Benötigte Klebstoffschichtdicken in mm"]
[null,null,{"$f":"HYPERLINK(B30)/0.02","v":0},"1) 2% Dehnungsaufnahme",null,null,"Z.B. für harte Epoxi wie :",null,null,2214,"DP100",null,null,null,null,"TG~ 100°C"]
["Totale","½ ",{"$f":"HYPERLINK(B30)/0.05","v":0},"2) 5% Dehnungsaufnahme",null,null,"Z.B. für flexible 2K Klebstoffe wie:",null,null,"DP125","DP190","2216B/A","DP609","DP8805","DP8405","TG~ 20°C"]
["Ausdehnungs-","Ausdehnungs-",{"$f":"HYPERLINK(B30)/0.03","v":0},"3) 3% Dehnungsaufnahme",null,null,"Z.B. für zähel. Klebstoffe wie: ",null,null,"DP410","DP460","DP490"," 9323B/A","7240B/A","DP8010","TG~60°C"]
["differenz","differenz",{"$f":"HYPERLINK(B30)/0.2","v":0},"4) 20% Dehnungsaufnahme",null,null,"Z.B. für 1K PU Kleb/Dichtmasse",null,null,540,760,null,null,null,null,"TG~0°C"]
[{"$f":"HYPERLINK(Ausdehnung!F16)","v":"0"},{"$f":"A30/2","v":0},{"$f":"HYPERLINK(B30)/0.25","v":0},"5) 25% Dehnungsaufnahme",null,null,"Z.B. 1K Silikon/ PU/ MS Dichtmasse ",null,null,null,320,3200,null,null,null,"TG~0°C"]
[null,null,{"$f":"HYPERLINK(B30)/3","v":0},"6) 300 % Dehnungsaufnahme",null,null,"Z.B. VHB ",null,null,null,4956]
["Diese Werte gelten als Anhaltpunkte für Temperaturen unterhalb des  TG Wertes. Bei Temperaturen über ca. 20°C des TG Wertes gilt die Dehnungsaufnahme ~ x2."]
[]
[null,"Das Material kann sich nicht auf beide Seiten ausdehnen, d.h. es muss mit der totalen Ausdehnungsdifferenz gerechnet werden. "]
[]
["Beispiel B:",null,null,null,null,null,null,null,null,"Material 1"]
[null,null,null,null,null,null,null,null,null,null,"∆T",{"$f":"L13","v":0}]
[null,null,null,null,null,null,null,null,null,null,"Länge mm",{"$f":"L14","v":2000}]
[null,null,null,null,null,null,null,null,null,null,null,"Totale Ausdehnungsdifferenz "]
[null,null,null,null,null,null,null,null,null,null,null,null,{"$f":"M15","v":"0"}]
[null,null,null,null,null,null,null,null,null,null,"Klebstoff"]
[null,null,null,null,null,null,null,null,null,null,null,"Material 2"]
["Bei 300 % Dehnungsaufnahme der VHB Bänder kann die totale Ausdehnungsdifferenz durch 3 geteilt werden. Sie erhalten so die minimal benötigte Dicke des Bandes."]
[]
[null,null,"Totale Ausdehnungsdifferenz",null,{"$f":"$A$30","v":"0"},{"$f":"E45/3","v":0},"mm Mindestdicke, wenn Ausdehnung nur auf einer Seite möglich"]
["Vorsicht: VHB Bänder können 50% ihrer Dicke mit Unebenheiten der Materialien \"kompensieren\".  Dies bedingt oft die Wahl eines dickeren Klebebandes als es die Ausdehnungsdifferenzen verlangen"]
["VHB Klebebänder haben eine Dickentoleranz je nach Produktelinie von bis zu +-10 bis 15%. Es wird daher empfohlen, die jeweils dickere Variante zu wählen."]

{"sheet":"TDS","index":2,"n_rows":136,"n_cols":18,"rows_kept":136,"cut":false,"hidden":false,"merged":[[0,14,0,15],[117,14,117,15],[123,14,123,15],[44,14,44,15],[38,14,38,15],[8,14,8,15],[16,14,16,15],[24,14,24,15],[50,14,50,15],[58,14,58,15],[66,14,66,15],[74,14,74,15],[82,14,82,15],[90,14,90,15],[99,14,99,15],[105,14,105,15],[129,14,129,15],[0,1,0,13],[8,1,8,13],[16,1,16,13],[24,1,24,13],[32,1,32,13],[38,1,38,13],[44,1,44,13],[50,1,50,13],[58,1,58,13],[66,1,66,13],[74,1,74,13],[82,1,82,13],[90,1,90,13],[99,1,99,13],[111,14,111,15],[105,1,105,13],[111,1,111,13],[117,1,117,13],[123,1,123,13],[129,1,129,13]]}
["DP100","MPa Zugscherfestigkeit",null,null,null,null,null,null,null,null,null,null,null,null,"N/cm Schälfestigkeit"]
["Prüftemperatur","Alu","Stahl","V2A Stahl","Kupfer","Messing","PVC","ABS","PMMA","PC","GFK 1","CFK 2","PP","HDPE","Alu","Stahl","GFK 1","Glasfaserverstärkte Kunststoffe"]
[" -55°C",6,null,null,null,null,null,null,null,null,null,null,null,null,null,null,"CFK 2","Kohlefaserverstärkte Kunststoffe"]
[" +24°C",7,7,6,7,5,2,4,2,2,7,null,null,null,3.6,3.6,"* Kohäsionsbruch im Werkstoff"]
[" +80°C",4]
[" +120°C"]
[" +180°C"]
[]
["DP125","MPa Zugscherfestigkeit",null,null,null,null,null,null,null,null,null,null,null,null,"N/cm Schälfestigkeit"]
["Prüftemperatur","Alu","Stahl","V2A Stahl","Kupfer","Messing","PVC","ABS","PMMA","PC","GFK 1","CFK 2","PP","HDPE","Alu","Stahl"]
[" -55°C",24,null,null,null,null,null,null,null,null,null,null,null,null,5]
[" +24°C",24,13,null,null,null,5,4,4,6,10,null,null,null,64]
[" +80°C",3,null,null,null,null,null,null,null,null,null,null,null,null,0.4]
[" +120°C"]
[" +180°C"]
[]
[2214,"MPa Zugscherfestigkeit",null,null,null,null,null,null,null,null,null,null,null,null,"N/cm Schälfestigkeit"]
["Prüftemperatur","Alu","Stahl","V2A Stahl","Kupfer","Messing","PVC","ABS","PMMA","PC","GFK 1","CFK 2","PP","HDPE","Alu","Stahl"]
[" -55°C",20,20,null,null,null,null,null,null,null,null,null,null,null,4,32]
[" +24°C",31,18,null,null,null,null,null,null,null,null,null,null,null,9,89]
[" +80°C",31,14,null,null,null,null,null,null,null,null,null,null,null,16,60]
[" +120°C",10,2,null,null,null,null,null,null,null,null,null,null,null,27,48]
[" +180°C",2.7,1,null,null,null,null,null,null,null,null,null,null,null,2,2]
[]
["2216 B/A","MPa Zugscherfestigkeit",null,null,null,null,null,null,null,null,null,null,null,null,"N/cm Schälfestigkeit"]
["Prüftemperatur","Alu","Stahl","V2A Stahl","Kupfer","Messing","PVC","ABS","PMMA","PC","GFK 1","CFK 2","PP","HDPE","Alu","Stahl"]
[" -55°C",14,null,null,null,null,null,null,null,null,null,null,null,null,3.6]
[" +24°C",17,null,null,null,null,null,null,null,null,null,null,null,null,45]
[" +80°C",2,null,null,null,null,null,null,null,null,null,null,null,null,3.6]
[" +120°C"]
[" +180°C"]
[]
["DP609","MPa Zugscherfestigkeit",null,null,null,null,null,null,null,null,null,null,null,null,"N/cm Schälfestigkeit"]
["Prüftemperatur","Alu","Stahl","V2A Stahl","Kupfer","Messing","PVC","ABS","PMMA","PC","GFK 1","CFK 2","PP","HDPE","Alu","Stahl"]
[" -40°C",28,null,null,null,null,2,3,4,5,11,null,3.9,null,11]
[" +24°C",24,null,null,null,null,6,5,3,10,8,null,3.7,null,70]
[" +80°C",3,null,null,null,null,0.7,2,0.5,2,1.2,null,0.8,null,5]
[]
["DP8405","MPa Zugscherfestigkeit",null,null,null,null,null,null,null,null,null,null,null,null,"N/cm Schälfestigkeit"]
["Prüftemperatur","Alu","Stahl","V2A Stahl","Kupfer","Messing","PVC","ABS","PMMA","PC","GFK 1","CFK 2","PP","HDPE","Alu","Stahl"]
[" -40°C"]
[" +24°C",28,25,null,null,null,12,7,9,9,6,29,null,null,88]
[" +80°C",8]
[]
["DP8805","MPa Zugscherfestigkeit",null,null,null,null,null,null,null,null,null,null,null,null,"N/cm Schälfestigkeit"]
["Prüftemperatur","Alu","Stahl","V2A Stahl","Kupfer","Messing","PVC","ABS","PMMA","PC","GFK 1","CFK 2","PP","HDPE","Alu","Stahl"]
[" -40°C"]
[" +24°C",24,23,null,null,null,12,8,7,6,5,20,null,null,44]
[" +80°C",4]
[]
["DP190","MPa Zugscherfestigkeit",null,null,null,null,null,null,null,null,null,null,null,null,"N/cm Schälfestigkeit"]
["Prüftemperatur","Alu","Stahl","V2A Stahl","Kupfer","Messing","PVC","ABS","PMMA","PC","GFK 1","CFK 2","PP","HDPE","Alu","Stahl"]
[" -55°C",11]
[" +24°C",18,12,11,9,8,"6*","7*","7*","10*","10*",null,null,null,21,44]
[" +80°C",3]
[" +120°C"]
[" +180°C"]
[]
["DP410","MPa Zugscherfestigkeit",null,null,null,null,null,null,null,null,null,null,null,null,"N/cm Schälfestigkeit"]
["Prüftemperatur","Alu","Stahl","V2A Stahl","Kupfer","Messing","PVC","ABS","PMMA","PC","GFK 1","CFK 2","PP","HDPE","Alu","Stahl"]
[" -55°C"]
[" +24°C",25,19,null,null,18,3,4,null,3,37,null,null,null,96]
[" +80°C"]
[" +120°C"]
[" +180°C"]
[]
["DP460","MPa Zugscherfestigkeit",null,null,null,null,null,null,null,null,null,null,null,null,"N/cm Schälfestigkeit"]
["Prüftemperatur","Alu","Stahl","V2A Stahl","Kupfer","Messing","PVC","ABS","PMMA","PC","GFK 1","CFK 2","PP","HDPE","Alu","Stahl"]
[" -55°C",31,null,17.600000000000001]
[" +24°C",31,19,106.8,71.599999999999994]
[" +80°C",5,null,32]
[" +120°C"]
[" +180°C"]
[]
["DP490","MPa Zugscherfestigkeit",null,null,null,null,null,null,null,null,null,null,null,null,"N/cm Schälfestigkeit"]
["Prüftemperatur","Alu","Stahl","V2A Stahl","Kupfer","Messing","PVC","ABS","PMMA","PC","GFK 1","CFK 2","PP","HDPE","Alu","Stahl"]
[" -55°C",17]
[" +24°C",26,null,null,null,null,3,3,4,3,30,36,null,null,74]
[" +80°C",12]
[" +120°C",2]
[" +180°C"]
[]
["9323B/A","MPa Zugscherfestigkeit",null,null,null,null,null,null,null,null,null,null,null,null,"N/cm Schälfestigkeit"]
["Prüftemperatur","Alu","Stahl","V2A Stahl","Kupfer","Messing","PVC","ABS","PMMA","PC","GFK 1","CFK 2","PP","HDPE","Alu","Stahl"]
[" -55°C","24-38",null,null,null,null,null,null,null,null,null,null,null,null,10]
[" +24°C","36-40",null,null,null,null,null,null,null,null,null,null,null,null,"47-58"]
[" +80°C","22-25",null,null,null,null,null,null,null,null,null,null,null,null," 10-54"]
[" +120°C",4]
[" +150°C",2]
[]
["7240B/A FR","MPa Zugscherfestigkeit",null,null,null,null,null,null,null,null,null,null,null,null,"N/cm Schälfestigkeit"]
["Prüftemperatur","Alu","Stahl","V2A Stahl","Kupfer","Messing","PVC","ABS","PMMA","PC","GFK 1","CFK 2","PP","HDPE","Alu","Stahl"]
[" -55°C",19]
[" -40°C",21]
[" +23°C",22,17,null,null,18,null,null,null,null,6,23,null,null,44]
[" +70°C",14]
[" +100°C",5]
[" +150°C",2]
[]
[540,"MPa Zugscherfestigkeit",null,null,null,null,null,null,null,null,null,null,null,null,"N/cm Schälfestigkeit"]
["Prüftemperatur","Alu","Stahl","V2A Stahl","Kupfer","Messing","PVC","ABS","PMMA","PC","GFK 1","CFK 2","PP","HDPE","Alu","Stahl"]
[" -55°C"]
[" +24°C",1.65,1.57,null,null,null,0.8,1.8,0.03,1.6,2]
[" +80°C"]
[]
[760,"MPa Zugscherfestigkeit",null,null,null,null,null,null,null,null,null,null,null,null,"N/cm Schälfestigkeit"]
["Prüftemperatur","Alu","Stahl","V2A Stahl","Kupfer","Messing","PVC","ABS","PMMA","PC","GFK 1","CFK 2","PP","HDPE","Alu","Stahl"]
[" -55°C"]
[" +24°C",1.8]
[" +80°C"]
[]
["Silikon 320","MPa Zugscherfestigkeit",null,null,null,null,null,null,null,null,null,null,null,null,"N/cm Schälfestigkeit"]
["Prüftemperatur","Alu","Stahl","V2A Stahl","Kupfer","Messing","PVC","ABS","PMMA","PC","GFK 1","CFK 2","PP","HDPE","Alu","Stahl"]
[" -55°C"]
[" +24°C",0.4]
[" +80°C"]
[]
["Silikon 3200","MPa Zugscherfestigkeit",null,null,null,null,null,null,null,null,null,null,null,null,"N/cm Schälfestigkeit"]
["Prüftemperatur","Alu","Stahl","V2A Stahl","Kupfer","Messing","PVC","ABS","PMMA","PC","GFK 1","CFK 2","PP","HDPE","Alu","Stahl"]
[" -55°C"]
[" +24°C",2]
[" +80°C"]
[]
["VHB 4956","MPa Zugscherfestigkeit",null,null,null,null,null,null,null,null,null,null,null,null,"N/cm Schälfestigkeit"]
["Prüftemperatur","Alu","Stahl","V2A Stahl","Kupfer","Messing","PVC","ABS","PMMA","PC","GFK 1","CFK 2","PP","HDPE","Alu","Stahl"]
[" -55°C"]
[" +24°C",0.4,null,null,null,null,null,null,null,null,null,null,null,null,35]
[" +80°C"]
[]
["DP8010","MPa Zugscherfestigkeit",null,null,null,null,null,null,null,null,null,null,null,null,"N/cm Schälfestigkeit"]
["Prüftemperatur","Alu","Stahl","V2A Stahl","Kupfer","Messing","PVC","ABS","PMMA","PC","GFK 1","CFK 2","PP","HDPE","PE","Stahl"]
[" -29°C",24]
[" +23°C",20,13,null,13,null,12,8,9,3,5,19,7,6,"*"]
[" +49°C",7]
[" +66°C",4]
[" +82°C",2.5]

{"sheet":"Kunststofftabelle","index":3,"n_rows":155,"n_cols":19,"rows_kept":155,"cut":false,"hidden":false,"merged":[]}
["Created by                     Pit Rütimann","Chemische Bezeichnung","Thermoplast","Duromer","Elastomer","Abkürzung","Verkaufsbezeichnung","Eigenschaft","In Flamme","Nach Flamme","Geruch","Oberflächen-      energie mN/ m","Ausdehnung        x 10-6 / °C",null,"Mögliche                       Vorbehandlung",null,"Besonderes",null,"Mögliche Produkte"]
[]
["Vinyl"]
[null,"Polyvinylchlorid                      ( hart/ weich)","x",null,null,"PVC","Trovidur, Vestolit, Hostalit, Vinnol, Vinoflex, Astralit, Forex, weich PVC=Vinyl, Mipolam, Kunstleder,","Thermoplast in allen Farben, gegen Wasser, Säuren, Alkohol, Benzin und Öle beständig","Brennt, schmilzt, tropft wenig, russt. Die Flamme ist bei Anwesenheit von Kupfer grün.","Erlischt. Weich- PVC kann weiter brennen. (Weichmacher)","Stechend nach Salzsäure","39-40                        ","70/80....150/210",null,"Isopropylalkohol,               Scotch- Brite 7447",null,"Lastwagenplachen,         Schwimmbadabdeckungen Früher für Flachdachabdichtungen Vorsicht: Weichmacherwanderung Recycling Nr. 03",null,"Klebstoff    EPX DP 609, 610, Jet- Weld 31/ 230 ,                           VHB                4936,4941, 4646, 4611                                      Primer           2262 / 4297als Weichmacherbremse "]
[null,"Polyvinyl- idenechloride","x",null,null,"PVDC",null,null,null,null,null,40]
[null,"Polyvinylalcohol","x",null,null,"PVAL","Alcotex, Lemac",null,null,null,null,37]
[null,"Polyvivylfluoride    (Tedlar)","x",null,null,"PVF",null,null,null,null,null,28]
[null,"Polyvinylacetate","x",null,null,"PVA(C )","Ponal, Pakoll",null,null,null,null,33]
[null,"Ethylvinyl-       acetate","x",null,null,"EVA",null,null,null,null,null,"32...34","160/200",null,null,null,"Ausgangsmaterial für Schmelzklebstoffe wie Jet- Melt"]
[null,"Polyvinylformal","x",null,null,"PVFM",null,null,null,null,null,39]
[null,"Polyvinyl-              butyral","x",null,null,"PVB",null,null,null,null,null,38]
[null,"Polyvinylchloride-  acetate","x",null,null,"PVCA"]
[null,"Polyvinylidene-    fluoride","x",null,null,"PVDF",null,null,null,null,null,25]
[]
[]
["Polyolefine"]
[null,"Polyethylen","LD   x","HD   x",null,"PE","Lupolen, Hostalen, Vestolen, Alathon, Ampacet,Durethene, Dylan, Fortiflex, Petrothene, Trolen, Crown Seal, Visqueen","Wachsartige bis harte Konsistenz. Wetterfest, nimmt kein Wasser auf. Bei normal Temperaturen beständig gegen Säuren und Laugen","Brennt mit gelber Flamme mit blauem Hintergrund, schmilzt, tropft, wird klar wenn gescholzen","Brennt weiter, schwach leuchtend","Riecht nach Kerzenwachs",31,"200-250",null,"Isopropylalkohol      Abflammen                         Corona                        Plasma                                   Primer 4298 UV                        Primer 94",null,"Spielzeuge, Verpackungen, Plastiksäcke. LD kann mit Fingernagel verkratzt werden                                  In Verschiedenen Dichten er-           hältlich:  LD= Low Density = niedrige Dichte                         HD = High Density = hohe Dichte                                      Recycling Nr.PE-HD 02  Recycling Nr.PE-LD 04",null,"Für strukturelle Verbindungen                  EPX DP 8005                                   Für temporäre Verbindungen            Jet- Melt 3748"]
[null,"Polypropylen","x",null,null,"PP","VestolenP, HostalenP, Novolen, Aerotuf, Celmar, Hypac, Impolene, Oleplate, Poly-pro, Profax, Propylux, TrolenPPVectra","Wachsartige bis harte Konsistenz. Wetterfest, nimmt kein Wasser auf. Bei normal Temperaturen beständig gegen Säuren und Laugen.Härtere Oberfläche als PE","Brennt mit gelber Flamme mit blauem Hintergrund, schmilzt, tropft, wird klar wenn gescholzen","Brennt weiter, schwach leuchtend","Riecht nach Kerzenwachs",29,150,null,"Isopropylalkohol      Abflammen                         Corona                        Plasma                                   Primer 4298 UV                        Primer 94",null,"Spielzeuge, als Blend mit anderen Kunststoffen wie ABS / PA für Automobilteile wie Zierleisten und Stossstangen, Maschinengehäuseteile Recycling Nr.05",null,"Für strukturelle Verbindungen                  EPX DP 8005                                   Für temporäre Verbindungen             Jet- Melt 3748"]
[null,"Expandiertes Polypropylen","x",null,null,"EPP",null,"Wasseraufnahme:                     Nach 1 Tag 0.5-1.5 Vol % Nach 7 Tagen 1.0-3.5 Vol %","Flammhemmend",null,null,null,100]
[null,"Polypropylen Atactic","x",null,null,"APP",null,null,null,null,null,28]
[null,"Polypropylen Isotactic","x",null,null,"IPP",null,null,null,null,null,"30,1"]
[]
[]
[null,"Chemische Bezeichnung","Thermoplast","Duromer","Elastomer","Abkürzung","Verkaufsbezeichnung","Eigenschaft","In Flamme","Nach Flamme","Geruch","Oberflächen-      energie mN/ m","Ausdehnung        x 10-6 / °C",null,"Mögliche                       Vorbehandlung",null,"Besonderes",null,"Mögliche Produkte"]
["Acrylate"]
[null,"Polymethyl-methacrylat","x",null,null,"PMMA","Acrylglas, Acrylite, Plexiglas, Resartglas, Degalan, Cryllex, Sumiplex, Perspex, Lucite","Gute Witterungs und Alterungsbeständigkeit. Beständig gegen Säuren und Laugen mittlerer Konzentration sowie Öle und Benzin, jedoch nicht gegenüber Alkohol und Benzol","Brennt knisternd mit gelber Flamme, schmilzt, russt nicht, tropft nicht","Brennt weiter","Riecht fruchtartig, süsslich","33..(39)..44",85,null,"Reinbenzin             Abflammen                         Corona                        Plasma                                   Primer 4298 UV                        Primer 94",null,"Vorsicht:                                 Nicht mit Alkohol entfetten. Nicht mit Aceton entfetten.             Nur mit Reinbenzin oder Waschbenzin entfetten",null,"Transparente Produkte:                VHB 4905/ 10/ 15/ 18/ 4614                           EPX DP 610"]
[null,"Polyethyl-             methacrylate","x",null,null,"PEMA",null,null,null,null,null,"31,5",null,null,"siehe PMMA"]
[null,"Poly(n-propyl- methacrylate)","x",null,null,"PPMA",null,null,null,null,null,32,null,null,"siehe PMMA"]
[null,"Poly(n-butyl- methacrylate","x",null,null,"PBMA",null,null,null,null,null,32,null,null,"siehe PMMA"]
[null,"Poly(n-hexyl- methacrylate","x",null,null,null,null,null,null,null,null,"27,5",null,null,"siehe PMMA"]
[null,"Polyoctyl- methacrylate","x",null,null,null,null,null,null,null,null,"23,5",null,null,"siehe PMMA"]
[null,"Polylauryl- methacrylate","x",null,null,null,null,null,null,null,null,"21,3",null,null,"siehe PMMA"]
[null,"Polystearyl- methacrylate","x",null,null,null,null,null,null,null,null,20.8,null,null,"siehe PMMA"]
[null,"Polyphenyl- methacrylate","x",null,null,"PFMA",null,null,null,null,null,35,null,null,"siehe PMMA"]
[null,"Polybenzyl- methacrylate","x",null,null,null,null,null,null,null,null,36,null,null,"siehe PMMA"]
[null,"Polyhydroxyethyl- methacrylate","x",null,null,null,null,null,null,null,null,37,null,null,"siehe PMMA"]
[null,"Polydimethylamin- oethylmethacrylat","x",null,null,null,null,null,null,null,null,36,null,null,"siehe PMMA"]
[null,"Poly(t-butylamino-ethylenmethacryl","x",null,null,null,null,null,null,null,null,34,null,null,"siehe PMMA"]
[null,"Polyethylacrylate","x",null,null,null,null,null,null,null,null,33,null,null,"siehe PMMA"]
[null,"Polybutylacrylate","x",null,null,null,null,null,null,null,null,31,null,null,"siehe PMMA"]
[null,"Polyethylhexyl- acrylate","x",null,null,null,null,null,null,null,null,31,null,null,"siehe PMMA"]
[null,"Polymethacrylo- nitril","x",null,null,null,null,null,null,null,null,39]
[]
[]
["Silikon"]
[null,"Silicone polydimethylsiloxane",null,null,"x","SI",null,"Wird als Dichtmassen eingesetzt",null,null,null,"20,7","20/50",null,null,null,null,null,"Nur Silikon klebt auf Silikon"]
[null,"Silicone polydiethyl- siloxane",null,null,"x",null,null,null,null,null,null,"20/22"]
[null,"Silicone polymethyl- phenylsiloxane",null,null,"x",null,null,null,null,null,null,"20/ 22"]
[]
[null,"Chemische Bezeichnung","Thermoplast","Duromer","Elastomer","Abkürzung","Verkaufsbezeichnung","Eigenschaft","In Flamme","Nach Flamme","Geruch","Oberflächen-      energie mN/ m","Ausdehnung        x 10-6 / °C",null,"Mögliche                       Vorbehandlung",null,"Besonderes",null,"Mögliche Produkte"]
[]
["Fluor"]
[null,"Polytetra- fluorethylene","x",null,null,"PTFE","Teflon, Hostaflon","Stark abweisend, gut chemikalienbeständig",null,null,null,18,100,null,"Ätzen",null,"Druckwalzen, Pfannen",null,"EPX DP 8010"]
[null,"Tetrafluor-ethylene/ chlorotrifluorethylene","x",null,null,"TFE/CTFE           (60/40)",null,null,null,null,null,24]
[null,"Polychlorotrifluor- ethylene","x",null,null,"PTFCE, PCTFE,CFM","KEL-F",null,null,null,null,31,60]
[null,"Ethylene/ trifluor- ethylene copolymer","x",null,null,"E/TFE 50/50",null,null,null,null,null,"26,5",40]
[null,"Polytrifluor-ethylen","x",null,null,"PFE",null,null,null,null,null,22,80]
[]
[]
["Rubber / Gummi"]
[null,"Natural Rubber Naturgummi",null,null,"x","NR",null,null,null,null,null,36]
[null,"Polyisoprene",null,null,"x","IR",null,null,null,null,null,31]
[null,"Polybutadiene",null,null,"x","BR",null,null,null,null,null,32]
[null,"Butadiene- styrene- rubber",null,null,"x","PSB SBK SBR    GR-S"]
[null,"Polyisobutylene",null,null,"x","PIM         IM",null,null,null,null,null,27]
[null,"Chloroprene",null,null,"x","CR","Polychloroprene",null,null,null,null,32,null,null,null,null,"Scotch-Weld 10,1300,FB2000"]
[null,"Neoprene",null,null,"x",null,null,null,null,null,null,38]
[null,"Butadieneacryl- nitril rubber",null,null,"x","BAN"]
[null,"Styrene butadiene- rubber",null,null,"x","SBR","Buna",null,null,null,null,null,null,null,null,null,"Scotch-Weld 34, Spray 77"]
[]
[]
["Harze"]
[null,"Epoxi",null,"x",null,"EP","Araldite, Epoxin, Lekutherm,Epon, Epotuf, EpiRez, Epodite, Epoxical, Polyset",null,null,null,null,"44/ 47","11/ 35",null,null,null,"Basismaterial für 2K Scotch-Weld Klebstoffe",null,"3M Klebstoffe auf Epoxibasis= EPX DP 100/105/110/125/190/410/460/490"]
[null,"Ureaformaldehyde",null,null,null,"UF","Resamin, Resopal",null,null,null,null,61,"50/60"]
[null,"Phenolformalde     hyde",null,null,null,"PF","Bakelite, Trolitan",null,null,null,null,null,"30/ 50"]
[null,"Melaminformalde-         hyde",null,null,null,"MF","Resamin Melan, Resopal, Formica",null,null,null,null,null,"50/ 60"]
[null,"Polyamideepi-       chlorohydrin",null,null,null,"PA/ CO, CHR",null,null,null,null,null,52]
[null,"Ungesättigte Polyester",null,"x",null,"UP","Leguval, Vestopal, Palatal, Polyleit"]
[]
[null,"Chemische Bezeichnung","Thermoplast","Duromer","Elastomer","Abkürzung","Verkaufsbezeichnung","Eigenschaft","In Flamme","Nach Flamme","Geruch","Oberflächen-      energie mN/ m","Ausdehnung        x 10-6 / °C",null,"Mögliche                       Vorbehandlung",null,"Besonderes",null,"Mögliche Produkte"]
[]
["Cellulose"]
[null,"Ethylcellulose",null,null,null,"EC"]
[null,"Celluloseacatat",null,null,null,"CA","Cellidor, Cellophane, Celluloid, Rayon",null,null,null,null,39,120]
[null,"Cellulose ",null,null,null,null,null,null,null,null,null,"35,5/ 42"]
[null,"Cellulosenitrate",null,null,null,"CN",null,null,null,null,null,38]
[null,"Celluloseacetatebutyrate",null,null,null,"CAB","Cellidor",null,null,null,null,34,120]
[]
[]
["Metalle"]
[null,"Aluminium",null,null,null,"AL",null,null,null,null,null,1200,23]
[null,"Blei",null,null,null,"PB",null,null,null,null,null,610,29]
[null,"Chrome",null,null,null,"CR",null,null,null,null,null,2400,"8,4"]
[null,"Stahl Rostfrei",null,null,null,null,null,null,null,null,null,2550,"12/17"]
[null,"Eisen",null,null,null,"FE",null,null,null,null,null,null,"9,9/ 12"]
[null,"Gold",null,null,null,"Au",null,null,null,null,null,1550,14]
[null,"Kupfer",null,null,null,"Cu",null,null,null,null,null,1850,"16,6 / 17,6"]
[null,"Nickel",null,null,null,"Ni",null,null,null,null,null,2450,13]
[null,"Silber",null,null,null,"Ag",null,null,null,null,null,1250,20]
[null,"Titanium",null,null,null,"Ti",null,null,null,null,null,2050,"8/10"]
[null,"Bronze",null,null,null,null,null,null,null,null,null,null,"5/7"]
[null,"Messing",null,null,null,null,null,null,null,null,null,null,"19,1/21,2"]
[null,"Magnesium rein",null,null,null,"Mg",null,null,null,null,null,null,"25,2"]
[null,"Magnesium Legierungen",null,null,null,null,null,null,null,null,null,null,"26,1/28,8"]
[null,"Zink",null,null,null,"Zn",null,null,null,null,null,1020,29]
[null,"Wolfram",null,null,null,"W",null,null,null,null,null,6800,"4,5"]
[null,"Platin",null,null,null,"Pt",null,null,null,null,null,null,9]
[null,"Zinn",null,null,null,"Sn",null,null,null,null,null,710,27]
[]
[]
[null,"Chemische Bezeichnung","Thermoplast","Duromer","Elastomer","Abkürzung","Verkaufsbezeichnung","Eigenschaft","In Flamme","Nach Flamme","Geruch","Oberflächen-      energie mN/ m","Ausdehnung        x 10-6 / °C",null,"Mögliche                       Vorbehandlung",null,"Besonderes",null,"Mögliche Produkte"]
["Andere Materialien"]
[null,"Beton",null,null,null,null,null,null,null,null,null,null,"7/ 14"]
[null,"Backstein",null,null,null,null,null,null,null,null,null,null,"5/ 7"]
[null,"Stein",null,null,null,null,null,null,null,null,null,null,"5/ 7"]
[null,"Glas",null,null,null,null,null,null,null,null,null,"400","5/ 11"]
[null,"Keramik",null,null,null,null,null,null,null,null,null,"38/ 40"]
[]
[]
["Amide"]
[null,"Polycaproamid","x",null,null,"PA 6","Ultramid, Durethan, Vestamid, Trogamid, Nylon, Capran, Dymetrol, Zytel, Namex, X-Tal, Grilon, Sustamid","Schlagzäh, hart, formstabil, abriebfest.Beständig gegen Alkalien und organische Lösungsmittel, nicht jedoch gegen konzentrierte Säuren und Laugen","Brennt mit bläulicher Flamme, Tropfen ziehen Fäden, schmilzt","Brennt weiter mit bläulicher, tropfender Flamme","Riecht nach verbranntem Horn",42,80,null,"Isopropylalkohol      Abflammen                         Corona                        Plasma                                   Primer 4298 UV                        Primer 94",null,"Sportartikel, Skischuhe, techn. Zahnräder",null,"Je nach Anwendung und Anforderung         EPX DP 810, DP8005"]
[null,"Polyhexamethylenadipamide","x",null,null,"PA 6,6",null,null,null,null,null,"40/ 46",80]
[null,"Polyheptamethyl-   pimelamide","x",null,null,"PA 7,7",null,null,null,null,null,43]
[null,"Polyoctamethylen- suberamide","x",null,null,"PA 8,8",null,null,null,null,null,34]
[null,"Polynonamethylen azelamide","x",null,null,"PA 9,9",null,null,null,null,null,36]
[null,"Polydecamethylen sebacamide","x",null,null,"PA10,10",null,null,null,null,null,32]
[null,"Polyundecylamide","x",null,null,"PA 11",null,null,null,null,null,33,130]
[]
[]
[]
[null,"Chemische Bezeichnung","Thermoplast","Duromer","Elastomer","Abkürzung","Verkaufsbezeichnung","Eigenschaft","In Flamme","Nach Flamme","Geruch","Oberflächen-      energie mN/ m","Ausdehnung        x 10-6 / °C",null,"Mögliche                       Vorbehandlung",null,"Besonderes",null,"Mögliche Produkte"]
["Andere Polymere"]
[null,"Acryl-Butadien-Styrol","x",null,null,"ABS","Novodur, Vestodur, Terulan, Abtrene, Abson, Cycolac, Dylel, Lustran, Royalite, Tybrene, Cycolin","Hart bis zähelastisch einstellbar, schlagzäh auch bei tiefen Temp.","Brennt mit schwarzen Rauch, starke Russflocken","Brennt weiter","Riecht süsslich","33- 37","60 / 110",null,"Isopropylalkohol Reinbenzin Scotchbrite, Corona, Plasma Abflammen, Primer 4289UV, 94",null,"Lego, Spielzeuge, Maschinenblenden Recycling Nr.07 Andere",null,"Je nach Anwendung und Anforderung"]
[null,"Polyoxymethylen","x",null,null,"POM","Delrin, Hostaform","Sehr hart, schlagzäh und abriebfest. Gute Beständigkeit gegen alle üblichen Lösungsmittel und Hitze ","Schwierig anzuzünden, brennt mit farbloser Flamme, nachtropfend","Brennt weiter mit kaum sichtbarer, heller, blauer Flamme","Vorsicht:         riecht stechend nach Formaldehyd",36,"90/110",null,"Isopropylalkohol      Abflammen                         Corona                        Plasma                                   Primer 4298 UV                        Primer 94",null,"Wird oft im Werkzeugbau eingesetzt. Farbe meistens weiss. Oberfläche fühlt sich seifig an",null,"Ohne spezielle Vorbehandlung nicht gut verklebbar"]
[null,"Polyethylen- Polybutylen- terephthalat,......................................... .....................................Polyethylenteraphtalat Glycol","x","x",null,"PET PBT ........ ....................................................PETG","Polyester, Alkanex, Arothane, Laminac, Muitron, Poiylite Resins, Mylar, Dacron, Kodel, Vycron, Valor, Valox...........................................Barlo Vectan","Sehr hart, abriebfest und dimensionstabil, gegen Lösungsmittel beständig. Wenig beständig gegen Wasser, Säuren oberhalb 70°C. Polyesterharze besitzen dagegen duro-         merische Eigenschaften, ","Schwer entflammbar, brennt mit gelblich- oranger Flamme, schwach russend, tropfend","Brennt weiter mit gelber tropfender Flamme","Riecht süsslich aromatisch","36...............41.......... 43","68............................70",null,"Isopropylalkohol Primer                 4289 UV                94",null,"Getränkeflaschen Recycling Nr.01  ...........................................................................................................................                                                                                                                                                                                                                                                                                                                                                              Ersatz für Plexiglas da auch transparent aber besser zum Bohren und Verarbeiten",null,"Je nach Anwendung und Anforderung .............................................................................................................................Cyanacrylat oder DP105"]
[null,"Polystyrene/                          Polystyrol","x",null,null,"PS  ","Vestyron, Hostyren, Polyfort, Polyflam, Vestoran, Luran","Eigentlich glasklar, kann gefärbt werden, hart und spröde, Nimmt kein Wasser auf, Alterungsbeständig. Beständig gegen Säuren+ Laugen, Alkohol und Öle, nicht jedoch gegen die meisten Lösungsmittel.","Brennt mit gelber, leuchtender, stark russender Flamme, schmilzt","Brennt weiter","Süsslich, ähnlich wie Leuchtgas","32,8.....43",70,null,"Isopropylalkohol,               Scotchbrite 7447",null,"Nicht mit Aceton Entfetten, bricht oder schmilzt sofort. Wird oft zum Tiefziehen eingesetzt. Besteckschubladen u.s.w. Vorsicht:                        Keine Lösemittelklebstoffe mit Aceton einsetzen,              kein Industriereiniger, Recycling Nr.06",null,"Dispersionen, Jet oder Low- Melt, EPX Produkte, Klebebänder unbedenklich  "]
[null,"Expandiertes Polystyrol","x",null,null,"EPS","Styrophor, Sagex","Wasseraufnahme:                   Nach 1 Tag 0.5-1.5 Vol % Nach 7 Tagen 1.5-3.0 Vol %","Schmilzt","Flammhemmend","Süsslich ",null,"50-70",null,null,null,"In vielen Farben erhältlich. Wird als Isolationsmaterial eingesetzt oder als Füllmittel für Verpackungen",null,"Dispersionen, Jet oder Low- Melt, EPX Produkte, Klebebänder unbedenklich  "]
[null,"Expandiertes Polystyrol/Polyphenylenoxid","x",null,null,"EPS-PPO",null,"Wasseraufnahme:                   >2.4 Vol %","Schmilzt","Flammhemmend","Süsslich",null,"40-50",null,null,null,"beige, schwarz"]
[null,"Polycarbonat","x",null,null,"PC","Macrolon, Celstran, Lexan, Merlon, Tuffac Cycoloy","Transparent bis leicht gelblich, hart, schlagfest, formstabil. Witterungsbeständig. Beständig gegen Mineralsäuren, Kohlenwasserstoffe, Öle, Fette, nicht jedoch gegen Alkalien","Schwer entflammbar, brennt leuchtend, russend, verkohlt und zeigt Blasenbildung","Brennt manchmal weiter mit leichter Russentwick-lung","Geruchlos oder leicht phenolartig","33- 37","60/ 70",null,"Isopropylalkohol,               Scotchbrite 7447           Primer 4298 UV oder 94",null,"Gute Resultate mit Primer 4298UV und                        Primer 94                                Recycling Nr.07 Andere",null,"Je nach Anwendung und Anforderung"]
[null,"Polyimid",null,null,null,"PI","Kapton",null,null,null,null,"42/ 50","50/63",null,null,null,"Sehr hoch Temperaturbeständig",null,"Gibt es auch als Klebebandträger in den Produkten 5413 / 5419"]
[null,"Polysulfon","x",null,null,"PSU",null,null,null,null,null,null,54]
[null,"Styreneacrylnitril","x",null,null,"SAN",null,null,null,null,null,43,80,null,null,null,"Wird oft im Lebensmittelbereich für Maschinenteile wie Kaffemaschinen u.s.w. eingesetzt"]
[null,"Polyacrylnitril","x",null,null,"PAN",null,null,null,null,null,"44/ 50"]
[null,"Polyphenyl-           enoxide","x",null,null,"PPO","Noryl"]
[]
[null,"Chemische Bezeichnung","Thermoplast","Duromer","Elastomer","Abkürzung","Verkaufsbezeichnung","Eigenschaft","In Flamme","Nach Flamme","Geruch","Oberflächen-      energie mN/ m","Ausdehnung        x 10-6 / °C",null,"Mögliche                       Vorbehandlung",null,"Besonderes",null,"Mögliche Produkte"]
[]
[null,"Poly (ethylenoxyde)-diol",null,null,null,null,null,null,null,null,null,43]
[null,"Poly 1H,1H-pentadecafluorethyl- acrylate",null,null,null,null,null,null,null,null,null,"10,4"]
[null,"Poly (propyleneoxide)- diol",null,null,null,null,null,null,null,null,null,32]
[null,"Polyepichloro- hydrin",null,null,null,"CO",null,null,null,null,null,35]
[null,"Fluoriertes ethylen- propylen copolymer",null,null,null,"FEP",null,null,null,null,null,"18,8",80]
[null,"Polyhexafluoropropylene",null,null,null,null,null,null,null,null,null,16]
[null,"Polyurethan",null,"x",null,"PUR","Baydur, Castomer, Celthane, Clocel, Estane, Isofoam, Nopcofoam, Polyfoam, Uralane, Uraligte, Urefoam",null,null,null,null,"42 / 50",210,null,null,null,"Bleibt flexibel auch bei niederen Temperaturen",null,"3M Klebstoffe auf PU BasisEPX DP 609, DP 610, Jet-Weld, Scotch Seal 5300, Scotch Grip5005"]
[null,"Polyphenylen-sulfid","x",null,null,"PPS","Tedur, Fortron, Petcoal, Ryton Torelina","Sehr gut chemisch beständig gegen div. Kraftstoffe, Öle, Ethanol, Frigen, Xylol",null,null,null,"?","0.5x10-4°K"]

{"sheet":"Zusätzliche neue Materialien","index":4,"n_rows":1,"n_cols":4,"rows_kept":1,"cut":false,"hidden":false,"merged":[]}
["PA66","30 längsrichtung ",null,"65 querrichtung"]

{"sheet":"Material Ausdehnungen","index":5,"n_rows":93,"n_cols":2,"rows_kept":93,"cut":false,"hidden":false,"merged":[]}
["Materialien","Wärmeausdehnungkoeffizient 10xhoch-6/°K"]
["PTFE",100]
["PTFCE",60]
["PP",150]
["PE",250]
["PMMA",85]
["Corean",39]
["Forex 1-4mm",56]
["Forex 5-19mm",66]
["PVC U hart",100]
["PVC P weich",200]
["EVA",200]
["SI",50]
["EPOXY",35]
["CA",120]
["PA6,PA6,6",80]
["PI,Kapton",60]
["ABS",110]
["ABS Verchromt",30]
["ABS/PC Verchromt",30]
["SAN",80]
["BASF ASA Luran S 778 T",80]
["POM",110]
["PS",70]
["EPS",70]
["EPS-PPO",50]
["EPP",100]
["PC",92]
["PET",70]
["Dap.ED230HPPPEPDMT20",52]
["Dap.EH104AEPPEPDMT10",68]
["Dap.L134HPPPEPDMT15",55]
["Dap.ED117AEPPEPDMT10",80]
["Dap.L340AE01PPEPDMT30",25]
["Dap.L109AE02PPEPDMT16",40]
["Dap.ED213AEPPEPDMT20",50]
["PUR",210]
["ALU",23.1]
["Dibond",23]
["BLEI",29]
["CHROME",4.9000000000000004]
["STAHL",11.5]
["CHROMNICKELSTAHL",17]
["GUSS",12]
["GOLD",14.2]
["KUPFER",16.5]
["NICKEL",13.4]
["SILBER",18.899999999999999]
["BERYLLIUM",11.3]
["TITAN",8.6]
["BRONZE",7]
["MESSING",21]
["MAGNESIUM",24.8]
["MANGAN",21.7]
["ZINK",30.2]
["ZINKCYANID",-18.100000000000001]
["WOLFRAM",4.5]
["PLATIN",8.8000000000000007]
["ZINN",22]
["BETON",10]
["KIESBETON",11]
["GASBETON",11]
["TON",7]
["STEIN",7]
["ZIEGELSTEIN",5]
["KLINKER",7]
["KERAM.FLIESEN",6]
["SANDSTEIN",12]
["KALKSANDSTEIN",8.5]
["PORZELAN",2.2000000000000002]
["BASALT",9]
["GIPS",25]
["DOLOMIT",8]
["TRAVERTIN",7]
["GLAS",8]
["QUARZGLAS",0.5]
["DIAMANT",1.18]
["SILIZIUM",2.6]
["MELAMINHARZ",50]
["PHENOLHARZ",40]
["MDF",6.8]
["AHORN längs FAS.",6.4]
["AHORN quer FAS.",48.4]
["BUCHE längs FAS.",6]
["BUCHE quer FAS.",47.6]
["EICHE längs FAS.",3.4]
["EICHE quer FAS.",28]
["FICHTE längs FAS.",5.4]
["FICHTE quer FAS.",34.1]
["MAHAG längs FAS.",3.6]
["MAHAG quer FAS.",40.4]
["TANNE längs FAS.",3.7]
["TANNE quer FAS.",34.1]

{"sheet":"DP Übersicht","index":6,"n_rows":27,"n_cols":30,"rows_kept":27,"cut":false,"hidden":false,"merged":[[26,15,26,24]]}
[]
["3M Scotch Weld EPX  DP Doppelkartuschen Klebstoffsysteme Produktebezeichnung","Basis","Farbe","Verarbeitungszeit min.","Handfest min. (0.35MPa)","Viskosität, Fliessverhalten","Zug- Scherfestigkeit in MPa (23°C)  ","Schälfestigkeit (N/cm)","Elastizität;  f=flexibel, h=hart, z=zähelastisch, s= sehr flexibel","Endfestigkeit 23°C h","Auch für niedrige Oberflächenspannung","Schlagfestigkeit","Geruchsneutral","Strukturelle Festigkeit von -°C bis +°C","Eingebaute Distanzhalter","50ml Qaud, Epoxi EPX/ D50Q","50ml Acrylat 810 EPX/D810","400ml Epoxi  EPX/D400","38ml (8005/8010/MD38 orange","265ml (8005 /8010) 8005/MD 265 orange","Kurzd400ml, EPX/MD802380","45ml Acrylat Neu EPX/D45 orange","490ml Acrylat Neu EPX/D490 orange","200ml 7270 Ampel 7270/D20","200/400ml, 7270/DQ (quadro) blau","50ml 1:1/2:1 (PLA 050-01) EPX/VK","37ml (PLA 050-02-3M) EPX/VOR420","37ml 10:1 8005/VK","45ml 10:1 Lang EPX/V880","Besonderes"]
["DP100 50ml","EP","transluszent",4,15,"dünnflüssig",9,4,"h",24,null,null,"x"," -40/+80",null,"x",null,null,null,null,null,null,null,null,null,"x",null,null,null,"Hartspröde"]
["DP105 50ml","EP","transparent",4,20,"dünnflüssig",14,62,"s",24,null,"x","x"," -55/+80",null,"x",null,null,null,null,null,null,null,null,null,"x",null,null,null,"Shore D 39, sehr flexibel "]
["DP110 50/400ml","EP","translu/grau",9,20,"dickflüssig",18,35,"z",24,null,"x","x"," -40/+80",null,"x",null,"x",null,null,null,null,null,null,null,"x",null,null,null,"Shore D 45 und 40% Dehnungsaufnahme für grau"]
["DP125 50ml","EP","grau",25,"2-3","mittelflüssig",24,62,"f",24,null,"x","x"," -50/+80",null,"x",null,null,null,null,null,null,null,null,null,"x"]
["DP190 50/400ml","EP","Transl/grau",90,"4-6","mittelflüssig",18,21,"f",24,null,"x","x"," -40/+80",null,"x",null,"x",null,null,null,null,null,null,null,"x"]
["DP270 50/400ml","EP","translu/schw.",70,"4-7","dünnflüssig",17,"<4","h",48,null,null,"x"," -55/+80",null,"x",null,"x",null,null,null,null,null,null,null,"x",null,null,null,"Shore D 83"]
["DP3532 50ml","PU","hellbraun",7,90,"dickflüssig",15,44,"f",24,null,"x",null," -40/+80",null,"x",null,null,null,null,null,null,null,null,null,"x"]
["DP410 50/400ml","EP","beige",10,30,"thyxotrop",34,100,"z",24,null,"x","x"," -55/+80",null,"x",null,"x",null,null,null,null,null,null,null,"x"]
["DP460 50/400ml","EP","beige",60,240,"mittelflüssig",31,107,"z",168,null,"x","x"," -50/+100",null,"x",null,"x",null,null,null,null,null,null,null,"x"]
["DP490 50/400ml","EP","schwarz",">90",240,"thyxotrop",30,92,"z",24,null,"x","x"," -50/+120",null,"x",null,"x",null,null,null,null,null,null,null,"x"]
["DP609 50ml","PU","hellbraun",9,45,"dickflüssig",14,70,"f",24,null,"x",null," -40/+80",null,"x",null,null,null,null,null,null,null,null,null,"x"]
["DP610 50ml","PU","transparent",10,120,"dünnflüssig",23,78,"f",168,null,"x",null," -40/+80",null,"x",null,null,null,null,null,null,null,null,null,"x",null,null,null,"nicht vergilbend"]
["DP7240FR 400ml","EP","schwarz",40,360,"thyxotrop",27,36,"z",24,null,"x","x"," -55/+150","x",null,null,"x",null,null,null,null,null,null,null,null,null,null,null,"selbstverlöschend, DIN 45545"]
["DP7270 200/400ml","EP/A","Ampel/grün",22,"4h/1MPa","thyxotrop",25,24,"z",48,"x","x","x"," -40/+80","x",null,null,null,null,null,null,null,null,"x","x",null,null,null,null,"Shore D 78"]
["DP7271 200/400ml","EP/A","grün",12,60,"thyxotrop",26,24,"z",120,"x","x","x"," -40/+120"]
["DP760 50ml","EP","weiss","45-60","240-360","thyxotrop",29,60,"z",24,null,null,"x"," -50/+230",null,"x",null,null,null,null,null,null,null,null,null,"x",null,null,null,"höchste Temp. beständigkeit"]
["DP8005 38/265ml","A","gelb",2.5,30,"mittelflüssig",14,28,"z",24,"x","x",null," -55/+100","x",null,null,null,"x","x",null,null,null,null,null,null,null,"x",null,"Für PE/PP"]
["DP8010 38/265ml","A","gelb",10,120,"mittelflüssig",10,28,"z",24,"x","x",null," -40/+80","x",null,null,null,null,"x",null,"x",null,null,null,null,null,null,null,"Für PE/PP"]
["DP804 50ml","A","transparent",2.5,4,"dünnflüssig",9,null,"h",0.6,"x",null,null,"0/+100",null,null,"x",null,null,null,null,null,null,null,null,"x",null,null,null,"Shore D 67, nur für Innenanwendungen "]
["DP810 50/400ml","A","grün",8,12,"dünnflüssig",30,52,"z",6,"x","x",null," -40/+80",null,null,"x",null,null,null,"x",null,null,null,null,"x"]
["DP8405 45/490ml","A","grün",5,14,"thyxotrop",28,88,"z",24,"x","x",null," -40/+80","x",null,null,null,null,null,null,"x","x",null,null,null,null,null,"x"]
["DP8805 45/490ml","A","blau",5,7,"thyxotrop",24,44,"z",24,"x","x","x"," -40/+80","x",null,null,null,null,null,null,"x","x",null,null,null,null,null,"x"]
["DP8810 45/490ml","A","blau",10,18,"thyxotrop",23,53,"z",24,"x","x","x"," -40/+80","x",null,null,null,null,null,null,"x","x",null,null,null,null,null,"x"]
["DP2216 43ml","EP","translu/grau",90,"480-640","mittelflüssig",16,45,"f",168,null,"x","x"," -55/+80",null,"x",null,null,null,null,null,null,null,null,null,null,"x",null,null,"USP Class VI, Medizin/ FDA"]
[null,null,null,null,null,null,null,null,null,null,null,null,null,null,null,"Mischdüsen",null,null,null,null,null,null,null,null,null,"Vor.kolben"]

{"sheet":"Mengenberechnung","index":7,"n_rows":50,"n_cols":8,"rows_kept":50,"cut":false,"hidden":false,"merged":[[11,3,11,4]]}
["Theoretische Verbrauchswerte"]
["Nassauftrag"]
[null,"Eingabefeld"]
["Länge in mm",280,null,"Fläche ","quadratisch = Länge, Breite, Schichtdicke, Anzahl Teile"]
["Breite in mm",25,null,{"$f":"SUM(B4*B5/1000000)","v":7.0000000000000001E-3}]
["Rund / Ø mm",0,null,{"$f":"SUM(B6*B6*3.14/4)/1000000","v":0},"Rondellen = Ø mm, Schichtdicke, Anzahl Teile"]
["Schichtdicke mm",0.2]
["Raupenlänge m",0,null,"Raupe","Raupendurchmesser Ø mm, Raupenlänge m"]
["Anzahl Teile",150]
[" "]
["Total in m2",{"$f":"SUM(D5*B9)+(D6*B9)","v":1.05}]
["Total Liter",{"$f":"SUM(B11*B7)+(B11*B8*1000)","v":0.21000000000000002},null,"Eingabefelder"]
[null,null,null,"Preis","Rabatt","Netto / Stk.","Umsatz"]
["Stk. 20 ml ",{"$f":"SUM(B12/0.02)","v":10.5},null,0,0,{"$f":"ROUND(D14*(1-E14)*2,1)/2","v":0},{"$f":"SUM(B14*F14)","v":0},"Cyanacrylate"]
["Stk. 38 ml Kart.",{"$f":"SUM(B12/0.038)","v":5.526315789473685},null,0,0,0,0,"EPX DP8005/8010"]
["Stk. 45 ml Kart.",{"$f":"SUM(B12/0.045)","v":4.666666666666667},null,0,0,0,0,"EPX DP8805/8810NS"]
["Stk. 50 ml Kart.",{"$f":"SUM(B12/0.05)","v":4.2},null,0,0,0,0,"EPX"]
["Stk. 120 ml Gebinde",{"$f":"SUM(B12/0.12)","v":1.7500000000000002},null,0,0,0,0,"Primer 4298UV"]
["Stk. 150 ml Tube",{"$f":"SUM(B12/0.15)","v":1.4000000000000001},null,0,0,0,0,"Safety Walk Edge Seal/ 2084 "]
["Stk. 236 ml Büchse",{"$f":"SUM(B12/0.236)","v":0.88983050847457645},null,0,0,0,0,"Primer 94"]
["Stk. 237 ml Büchse",{"$f":"SUM(B12/0.237)","v":0.88607594936708878},null,0,0,0,0,"3950 Sealer"]
["Stk. 250 ml Tube",{"$f":"SUM(B12/0.25)","v":0.84000000000000008},null,0,0,0,0,"2216 B / A"]
["Stk. 265 ml Kart.",{"$f":"SUM(B12/0.265)","v":0.79245283018867929},null,0,0,0,0,"EPX 8000er"]
["Stk. 280 ml Kart.",{"$f":"SUM(B12/0.28)","v":0.75},null,0,0,{"$f":"ROUND(D24*(1-E24)*2,1)/2","v":0},{"$f":"SUM(B24*F24)","v":0},"3200 Silikon"]
["Stk. 295 ml Kart.",{"$f":"SUM(B12/0.295)","v":0.71186440677966112},null,0,0,0,0,"Hybr. 760, PU 30,31,100,230"]
["Stk. 310 ml Kart.",{"$f":"SUM(B12/0.31)","v":0.67741935483870974},null,0,0,0,0,"Powerline 540,560, Silikon 320"]
["Stk. 380 ml Kart.",{"$f":"SUM(B12/0.38)","v":0.55263157894736847},null,0,0,0,0,"EPX GT "]
["Stk. 400 ml Kart.",{"$f":"SUM(B12/0.4)","v":0.52500000000000002},null,0,0,0,0,"EPX"]
["Stk. 490ml Kart.",{"$f":"SUM(B12/0.49)","v":0.4285714285714286},null,0,0,0,0,"EPX DP8805/8810NS"]
["Stk. 500 ml Büchse",{"$f":"SUM(B12/0.5)","v":0.42000000000000004},null,0,0,0,0,"Primer 2262H"]
["Stk. 600 ml Sachet",{"$f":"SUM(B12/0.6)","v":0.35000000000000003},null,0,0,0,0,"540, 560"]
["Stk. 1l",{"$f":"SUM(B12/1)","v":0.21000000000000002},null,0,0,0,0,"Kontaktklebstoffe"]
["Stk. 1.6 l Büchse",{"$f":"SUM(B12/1.6)","v":0.13125000000000001},null,0,0,0,0,"2216 B/A Kit"]
["Stk. 18,9 l ",{"$f":"SUM(B12/18.9)","v":1.1111111111111113E-2},null,0,0,0,0,"2216 B/A Kit"]
["Stk. 20 l Kessel",{"$f":"SUM(B12/20)","v":1.0500000000000001E-2},null,0,0,0,0,"Kontaktklebstoffe"]
["Stk. 200 l Fass",{"$f":"SUM(B12/200)","v":1.0500000000000002E-3},null,0,0,0,0,"Kontaktklebstoffe"]
[]
["Theoretische ","Schichtdicke"]
["Richtwerte","in mm"]
["Primer 2262H/9348",0.05]
["Primer 94 / 4298 UV",1.4999999999999999E-2]
["CA SI Gel",0.25,null,"max.0.5"]
["CA ",0.05,null,"max.0.1"]
["2K Klebstoffe","0.05 - 0.15",null,"optimale Klebstoffschichtdicke"]
["DP8805/8810",0.25,null,"Glaskugeln Abstandhalter"]
["Sealer 3950 ",0.2,null,"ca.400m"]
["Kontaktklebstoffe",0.15,null,"ca.7m2","Lösemittelhaltige"]
["Safety-Walk Sealer",1.2,null,"ca. 30m"]
["Schmelzklebstoffe","Quadrack 1 Stange = ca. 3.2m mit Ø 3 mm Raupe. 5 Kg = ca. 166 Stangen= 530m"]
["Spray","74, 76, 80, 90 ca. 4 m2. // 75, 77 ca. 12 m2"]